[Event "Titled Tuesday Blitz June 07 Late 2022"]
[White "Licznerski, Lukasz"]
[Black "Sarana, Alexey"]
[WhiteFideId "1179250"]
[BlackFideId "24133795"]
[WhiteElo "2387"]
[BlackElo "2666"]
[Result "1-0"]
[Round "05"]
[TimeControl "180+1"]
[Date "2022.06.07"]
[WhiteClock "0:00:03"]
[BlackClock "0:00:02"]

1. e4 {[%clk 0:03:00]}  c5 {[%clk 0:02:58]} 2. Nf3 {[%clk 0:03:01]}  d6 {[%clk 0:02:54]} 3. d4 {[%clk 0:03:01]}  cxd4 {[%clk 0:02:55]} 4. Nxd4 {[%clk 0:03:02]}  Nf6 {[%clk 0:02:50]} 5. Nc3 {[%clk 0:03:02]}  a6 {[%clk 0:02:50]} 6. Be2 {[%clk 0:03:00]}  e5 {[%clk 0:02:50]} 7. Nf3 {[%clk 0:02:59]}  Be7 {[%clk 0:02:50]} 8. Bg5 {[%clk 0:02:59]}  Be6 {[%clk 0:02:50]} 9. Bxf6 {[%clk 0:02:59]}  Bxf6 {[%clk 0:02:51]} 10. Qd2 {[%clk 0:02:58]}  Be7 {[%clk 0:02:51]} 11. O-O {[%clk 0:02:56]}  Nd7 {[%clk 0:02:52]} 12. Nd5 {[%clk 0:02:55]}  Nb6 {[%clk 0:02:49]} 13. Nxe7 {[%clk 0:02:41]}  Qxe7 {[%clk 0:02:49]} 14. Rfd1 {[%clk 0:02:41]}  Rd8 {[%clk 0:02:49]} 15. b3 {[%clk 0:02:40]}  O-O {[%clk 0:02:44]} 16. Qe3 {[%clk 0:02:37]}  Nd7 {[%clk 0:02:42]} 17. Rd2 {[%clk 0:02:35]}  Nf6 {[%clk 0:02:40]} 18. Rad1 {[%clk 0:02:31]}  Qc7 {[%clk 0:02:40]} 19. h3 {[%clk 0:02:23]}  Rd7 {[%clk 0:02:18]} 20. Ng5 {[%clk 0:02:19]}  Rfd8 {[%clk 0:02:12]} 21. f4 {[%clk 0:02:13]}  exf4 {[%clk 0:02:11]} 22. Qxf4 {[%clk 0:02:14]}  Qc5+ {[%clk 0:02:03]} 23. Kh1 {[%clk 0:02:10]}  h6 {[%clk 0:01:52]} 24. Nf3 {[%clk 0:02:07]}  d5 {[%clk 0:01:40]} 25. exd5 {[%clk 0:01:57]}  Rxd5 {[%clk 0:01:09]} 26. c4 {[%clk 0:01:57]}  Rxd2 {[%clk 0:01:06]} 27. Rxd2 {[%clk 0:01:58]}  Re8 {[%clk 0:01:00]} 28. Nd4 {[%clk 0:01:47]}  Bd7 {[%clk 0:00:56]} 29. Bf3 {[%clk 0:01:46]}  b5 {[%clk 0:00:56]} 30. cxb5 {[%clk 0:01:41]}  axb5 {[%clk 0:00:57]} 31. Kh2 {[%clk 0:01:40]}  Qc1 {[%clk 0:00:54]} 32. Ne2 {[%clk 0:01:33]}  Qe1 {[%clk 0:00:32]} 33. Ng3 {[%clk 0:01:26]}  Rc8 {[%clk 0:00:26]} 34. Rd1 {[%clk 0:01:22]}  Qe8 {[%clk 0:00:24]} 35. Rd2 {[%clk 0:01:15]}  Qe1 {[%clk 0:00:21]} 36. Rd1 {[%clk 0:01:13]}  Qf2 {[%clk 0:00:21]} 37. Rd2 {[%clk 0:01:09]}  Qc5 {[%clk 0:00:21]} 38. Ne4 {[%clk 0:01:05]}  Nxe4 {[%clk 0:00:22]} 39. Bxe4 {[%clk 0:01:06]}  Be6 {[%clk 0:00:21]} 40. Rc2 {[%clk 0:01:04]}  Qf8 {[%clk 0:00:22]} 41. Rxc8 {[%clk 0:01:00]}  Qxc8 {[%clk 0:00:23]} 42. a4 {[%clk 0:00:58]}  g5 {[%clk 0:00:22]} 43. Qd6 {[%clk 0:00:51]}  bxa4 {[%clk 0:00:20]} 44. bxa4 {[%clk 0:00:51]}  Qc4 {[%clk 0:00:18]} 45. Bc6 {[%clk 0:00:49]}  Qc3 {[%clk 0:00:16]} 46. Bf3 {[%clk 0:00:31]}  Kg7 {[%clk 0:00:16]} 47. Qb6 {[%clk 0:00:19]}  Qe5+ {[%clk 0:00:15]} 48. g3 {[%clk 0:00:18]}  Qc3 {[%clk 0:00:11]} 49. Bg2 {[%clk 0:00:15]}  Qd2 {[%clk 0:00:12]} 50. Qb5 {[%clk 0:00:11]}  Bd7 {[%clk 0:00:08]} 51. Qe5+ {[%clk 0:00:10]}  Kg8 {[%clk 0:00:07]} 52. Qe4 {[%clk 0:00:06]}  Qa2 {[%clk 0:00:05]} 53. Qa8+ {[%clk 0:00:05]}  Kg7 {[%clk 0:00:05]} 54. a5 {[%clk 0:00:06]}  Bb5 {[%clk 0:00:05]} 55. Kg1 {[%clk 0:00:03]}  Qa1+ {[%clk 0:00:05]} 56. Kh2 {[%clk 0:00:03]}  Bc4 {[%clk 0:00:05]} 57. Qe4 {[%clk 0:00:02]}  Be6 {[%clk 0:00:04]} 58. Qb4 {[%clk 0:00:01]}  Qa2 {[%clk 0:00:03]} 59. Qd4+ {[%clk 0:00:02]}  Kg8 {[%clk 0:00:03]} 60. Qd8+ {[%clk 0:00:01]}  Kh7 {[%clk 0:00:03]} 61. Qd3+ {[%clk 0:00:02]}  Kg7 {[%clk 0:00:04]} 62. Qd4+ {[%clk 0:00:02]}  Kg6 {[%clk 0:00:04]} 63. Qd3+ {[%clk 0:00:03]}  Kf6 {[%clk 0:00:03]} 64. Qd4+ {[%clk 0:00:03]}  Ke7 {[%clk 0:00:04]} 65. Qc5+ {[%clk 0:00:03]}  Kd7 {[%clk 0:00:03]} 66. Qc6+ {[%clk 0:00:03]}  Kd8 {[%clk 0:00:03]} 67. a6 {[%clk 0:00:03]}  Bd7 {[%clk 0:00:02]} 68. Qa8+ {[%clk 0:00:03]}  Ke7 {[%clk 0:00:03]} 69. a7 {[%clk 0:00:03]}  Bxh3 {[%clk 0:00:02]} 70. Qe4+ {[%clk 0:00:03]}  Kf6 {[%clk 0:00:02]} 71. a8=Q {[%clk 0:00:03]}  Bxg2 {[%clk 0:00:03]} 72. Qxg2 {[%clk 0:00:02]}  Qb3 {[%clk 0:00:02]} 73. Qaf3+ {[%clk 0:00:03]}  Kg7 {[%clk 0:00:02]} 74. Qxb3 {[%clk 0:00:03]} 1-0


[Site "https://www.chess.com"]

[Event "Titled Tuesday Blitz June 07 Late 2022"]
[White "Martinez Alcantara, Jose Eduardo"]
[Black "Bernadskiy, Vitaliy"]
[WhiteFideId "3805662"]
[BlackFideId "14100371"]
[WhiteElo "2703"]
[BlackElo "2473"]
[Result "1-0"]
[Round "05"]
[TimeControl "180+1"]
[Date "2022.06.07"]
[WhiteClock "0:01:30"]
[BlackClock "0:00:44"]

1. e4 {[%clk 0:03:00]}  c5 {[%clk 0:02:55]} 2. Nf3 {[%clk 0:03:01]}  d6 {[%clk 0:02:55]} 3. Bb5+ {[%clk 0:03:01]}  Nd7 {[%clk 0:02:53]} 4. O-O {[%clk 0:03:01]}  Nf6 {[%clk 0:02:52]} 5. Re1 {[%clk 0:03:01]}  a6 {[%clk 0:02:52]} 6. Bxd7+ {[%clk 0:03:01]}  Bxd7 {[%clk 0:02:52]} 7. c3 {[%clk 0:03:02]}  Bg4 {[%clk 0:02:42]} 8. h3 {[%clk 0:02:53]}  Bh5 {[%clk 0:02:35]} 9. d3 {[%clk 0:02:53]}  e6 {[%clk 0:02:35]} 10. Nbd2 {[%clk 0:02:53]}  Be7 {[%clk 0:02:35]} 11. Nf1 {[%clk 0:02:54]}  O-O {[%clk 0:02:34]} 12. Ng3 {[%clk 0:02:55]}  Bg6 {[%clk 0:02:34]} 13. Nh4 {[%clk 0:02:47]}  d5 {[%clk 0:02:32]} 14. Nxg6 {[%clk 0:02:46]}  hxg6 {[%clk 0:02:32]} 15. Qe2 {[%clk 0:02:45]}  dxe4 {[%clk 0:02:27]} 16. dxe4 {[%clk 0:02:45]}  e5 {[%clk 0:02:22]} 17. Bg5 {[%clk 0:02:41]}  Qc7 {[%clk 0:02:20]} 18. Nf1 {[%clk 0:02:36]}  Qc6 {[%clk 0:02:04]} 19. Bxf6 {[%clk 0:02:30]}  gxf6 {[%clk 0:01:44]} 20. Qf3 {[%clk 0:02:22]}  c4 {[%clk 0:01:32]} 21. Ne3 {[%clk 0:02:21]}  Kg7 {[%clk 0:01:27]} 22. Nd5 {[%clk 0:02:14]}  Bc5 {[%clk 0:01:26]} 23. b4 {[%clk 0:02:02]}  Ba7 {[%clk 0:01:18]} 24. a4 {[%clk 0:01:50]}  Rfd8 {[%clk 0:01:15]} 25. a5 {[%clk 0:01:47]}  Rd7 {[%clk 0:01:11]} 26. g4 {[%clk 0:01:45]}  Rad8 {[%clk 0:01:09]} 27. Rad1 {[%clk 0:01:44]}  Qe6 {[%clk 0:01:09]} 28. Kg2 {[%clk 0:01:44]}  Rd6 {[%clk 0:01:04]} 29. Nc7 {[%clk 0:01:36]}  Qc8 {[%clk 0:00:51]} 30. Ne8+ {[%clk 0:01:30]}  Rxe8 {[%clk 0:00:48]} 31. Rxd6 {[%clk 0:01:30]}  Re6 {[%clk 0:00:44]} 32. Red1 {[%clk 0:01:30]} 1-0


[Site "https://www.chess.com"]

[Event "Titled Tuesday Blitz June 07 Late 2022"]
[White "Moroni, Luca Jr"]
[Black "Bernal Moro, Luis Javier"]
[WhiteFideId "865834"]
[BlackFideId "2200236"]
[WhiteElo "2573"]
[BlackElo "2373"]
[Result "1-0"]
[Round "05"]
[TimeControl "180+1"]
[Date "2022.06.07"]
[WhiteClock "0:01:28"]
[BlackClock "0:00:33"]

1. d4 {[%clk 0:03:00]}  Nf6 {[%clk 0:02:56]} 2. Bf4 {[%clk 0:03:00]}  d6 {[%clk 0:02:54]} 3. e3 {[%clk 0:03:00]}  Nbd7 {[%clk 0:02:45]} 4. Nf3 {[%clk 0:02:57]}  Nh5 {[%clk 0:02:45]} 5. Bg5 {[%clk 0:02:55]}  h6 {[%clk 0:02:46]} 6. Bh4 {[%clk 0:02:56]}  g5 {[%clk 0:02:46]} 7. Nfd2 {[%clk 0:02:54]}  gxh4 {[%clk 0:02:33]} 8. Qxh5 {[%clk 0:02:54]}  e5 {[%clk 0:02:33]} 9. Bc4 {[%clk 0:02:47]}  Qe7 {[%clk 0:02:32]} 10. Nc3 {[%clk 0:02:43]}  exd4 {[%clk 0:01:42]} 11. Nd5 {[%clk 0:02:38]}  Nf6 {[%clk 0:01:42]} 12. Nxf6+ {[%clk 0:02:18]}  Qxf6 {[%clk 0:01:42]} 13. exd4 {[%clk 0:02:13]}  Be6 {[%clk 0:01:29]} 14. Qb5+ {[%clk 0:02:03]}  Bd7 {[%clk 0:00:42]} 15. Qxb7 {[%clk 0:02:02]}  Qd8 {[%clk 0:00:42]} 16. O-O-O {[%clk 0:01:56]}  Be7 {[%clk 0:00:40]} 17. Qe4 {[%clk 0:01:45]}  Kf8 {[%clk 0:00:36]} 18. Qf3 {[%clk 0:01:38]}  Be8 {[%clk 0:00:34]} 19. Rhe1 {[%clk 0:01:33]}  Kg7 {[%clk 0:00:33]} 20. Rxe7 {[%clk 0:01:28]} 1-0


[Site "https://www.chess.com"]

[Event "Titled Tuesday Blitz June 07 Late 2022"]
[White "Paravyan, David"]
[Black "Nakamura, Hikaru"]
[WhiteFideId "4194985"]
[BlackFideId "2016192"]
[WhiteElo "2569"]
[BlackElo "2850"]
[Result "0-1"]
[Round "05"]
[TimeControl "180+1"]
[Date "2022.06.07"]
[WhiteClock "0:00:02"]
[BlackClock "0:00:41"]

1. e4 {[%clk 0:03:00]}  g6 {[%clk 0:01:34]} 2. d4 {[%clk 0:02:58]}  Bg7 {[%clk 0:01:34]} 3. Nf3 {[%clk 0:02:59]}  a6 {[%clk 0:01:34]} 4. c4 {[%clk 0:02:57]}  d6 {[%clk 0:01:35]} 5. Nc3 {[%clk 0:02:58]}  Bg4 {[%clk 0:01:35]} 6. Be2 {[%clk 0:02:57]}  Nc6 {[%clk 0:01:35]} 7. Be3 {[%clk 0:02:57]}  e5 {[%clk 0:01:35]} 8. d5 {[%clk 0:02:57]}  Bxf3 {[%clk 0:01:34]} 9. Bxf3 {[%clk 0:02:56]}  Nd4 {[%clk 0:01:35]} 10. g3 {[%clk 0:02:55]}  Ne7 {[%clk 0:01:35]} 11. Bg2 {[%clk 0:02:55]}  c5 {[%clk 0:01:34]} 12. dxc6 {[%clk 0:02:54]}  bxc6 {[%clk 0:01:33]} 13. O-O {[%clk 0:02:51]}  c5 {[%clk 0:01:33]} 14. f4 {[%clk 0:02:48]}  exf4 {[%clk 0:01:34]} 15. gxf4 {[%clk 0:02:47]}  Rb8 {[%clk 0:01:33]} 16. b3 {[%clk 0:02:21]}  O-O {[%clk 0:01:30]} 17. Rc1 {[%clk 0:02:16]}  f5 {[%clk 0:01:30]} 18. Kh1 {[%clk 0:02:02]}  Kh8 {[%clk 0:01:30]} 19. Bxd4 {[%clk 0:01:51]}  Bxd4 {[%clk 0:01:28]} 20. Ne2 {[%clk 0:01:52]}  Bg7 {[%clk 0:01:28]} 21. Ng3 {[%clk 0:01:51]}  Qc7 {[%clk 0:01:22]} 22. Qd3 {[%clk 0:01:50]}  Rbd8 {[%clk 0:01:18]} 23. Rce1 {[%clk 0:01:49]}  fxe4 {[%clk 0:01:16]} 24. Bxe4 {[%clk 0:01:49]}  Rde8 {[%clk 0:01:09]} 25. f5 {[%clk 0:01:22]}  gxf5 {[%clk 0:01:10]} 26. Nxf5 {[%clk 0:01:22]}  Nxf5 {[%clk 0:01:10]} 27. Bxf5 {[%clk 0:01:23]}  Rxe1 {[%clk 0:01:11]} 28. Rxe1 {[%clk 0:01:23]}  Qf7 {[%clk 0:01:11]} 29. Bh3 {[%clk 0:00:35]}  Qh5 {[%clk 0:01:11]} 30. Rf1 {[%clk 0:00:33]}  Re8 {[%clk 0:01:09]} 31. Qf5 {[%clk 0:00:30]}  Qh4 {[%clk 0:01:06]} 32. Qd7 {[%clk 0:00:26]}  Rd8 {[%clk 0:01:06]} 33. Qg4 {[%clk 0:00:25]}  Qh6 {[%clk 0:01:06]} 34. Qe6 {[%clk 0:00:19]}  Qd2 {[%clk 0:01:02]} 35. Qe7 {[%clk 0:00:18]}  Rg8 {[%clk 0:01:02]} 36. Rg1 {[%clk 0:00:16]}  Qd3 {[%clk 0:00:53]} 37. Rg3 {[%clk 0:00:12]}  Qb1+ {[%clk 0:00:49]} 38. Kg2 {[%clk 0:00:10]}  Qxa2+ {[%clk 0:00:50]} 39. Kh1 {[%clk 0:00:10]}  Qb1+ {[%clk 0:00:50]} 40. Kg2 {[%clk 0:00:10]}  Qc2+ {[%clk 0:00:51]} 41. Kh1 {[%clk 0:00:10]}  Qd1+ {[%clk 0:00:51]} 42. Kg2 {[%clk 0:00:10]}  Qd2+ {[%clk 0:00:49]} 43. Kh1 {[%clk 0:00:10]}  Qc1+ {[%clk 0:00:50]} 44. Kg2 {[%clk 0:00:11]}  Qb2+ {[%clk 0:00:51]} 45. Kh1 {[%clk 0:00:11]}  Rf8 {[%clk 0:00:51]} 46. Qxd6 {[%clk 0:00:05]}  Qb1+ {[%clk 0:00:47]} 47. Rg1 {[%clk 0:00:05]}  Qxb3 {[%clk 0:00:48]} 48. Bg2 {[%clk 0:00:03]}  Qxc4 {[%clk 0:00:47]} 49. Qc7 {[%clk 0:00:02]}  Bd4 {[%clk 0:00:46]} 50. Re1 {[%clk 0:00:02]}  Qf7 {[%clk 0:00:44]} 51. Qb6 {[%clk 0:00:02]}  Qg6 {[%clk 0:00:42]} 52. Qb7 {[%clk 0:00:01]}  a5 {[%clk 0:00:40]} 53. Qe7 {[%clk 0:00:02]}  Rg8 {[%clk 0:00:40]} 54. Be4 {[%clk 0:00:02]}  Qg1+ {[%clk 0:00:40]} 55. Rxg1 {[%clk 0:00:02]}  Rxg1# {[%clk 0:00:41]} 0-1


[Site "https://www.chess.com"]

[Event "Titled Tuesday Blitz June 07 Late 2022"]
[White "Pinheiro, Iung Alicio de O."]
[Black "Alexiadis, Hristos"]
[WhiteFideId "2104350"]
[BlackFideId "4249623"]
[WhiteElo "2283"]
[BlackElo "2416"]
[Result "0-1"]
[Round "05"]
[TimeControl "180+1"]
[Date "2022.06.07"]
[WhiteClock "0:00:04"]
[BlackClock "0:00:10"]

1. c4 {[%clk 0:02:15]}  Nf6 {[%clk 0:02:58]} 2. g3 {[%clk 0:02:15]}  g6 {[%clk 0:02:56]} 3. Bg2 {[%clk 0:02:16]}  Bg7 {[%clk 0:02:57]} 4. Nc3 {[%clk 0:02:16]}  O-O {[%clk 0:02:57]} 5. e4 {[%clk 0:02:16]}  d6 {[%clk 0:02:52]} 6. Nge2 {[%clk 0:02:13]}  c5 {[%clk 0:02:52]} 7. d3 {[%clk 0:02:04]}  Nc6 {[%clk 0:02:52]} 8. Be3 {[%clk 0:02:04]}  Ne8 {[%clk 0:02:53]} 9. d4 {[%clk 0:02:01]}  cxd4 {[%clk 0:02:53]} 10. Nxd4 {[%clk 0:02:02]}  Nc7 {[%clk 0:02:53]} 11. O-O {[%clk 0:02:02]}  Ne6 {[%clk 0:02:52]} 12. Nde2 {[%clk 0:02:02]}  Bd7 {[%clk 0:02:52]} 13. Rc1 {[%clk 0:01:58]}  Rc8 {[%clk 0:02:52]} 14. b3 {[%clk 0:01:57]}  a6 {[%clk 0:02:52]} 15. h3 {[%clk 0:01:57]}  Re8 {[%clk 0:02:52]} 16. f4 {[%clk 0:01:56]}  Qa5 {[%clk 0:02:52]} 17. a4 {[%clk 0:01:38]}  Nc5 {[%clk 0:02:31]} 18. Nd5 {[%clk 0:01:18]}  b5 {[%clk 0:02:07]} 19. cxb5 {[%clk 0:00:49]}  axb5 {[%clk 0:02:08]} 20. Bd2 {[%clk 0:00:50]}  Qa7 {[%clk 0:02:03]} 21. Kh2 {[%clk 0:00:50]}  bxa4 {[%clk 0:02:01]} 22. bxa4 {[%clk 0:00:49]}  Be6 {[%clk 0:01:34]} 23. Be3 {[%clk 0:00:46]}  Bxd5 {[%clk 0:01:31]} 24. Qxd5 {[%clk 0:00:47]}  Nb4 {[%clk 0:01:21]} 25. Qd2 {[%clk 0:00:45]}  Qxa4 {[%clk 0:01:17]} 26. Rc4 {[%clk 0:00:39]}  Ncd3 {[%clk 0:00:51]} 27. Nc3 {[%clk 0:00:23]}  Qa6 {[%clk 0:00:44]} 28. Rxc8 {[%clk 0:00:21]}  Rxc8 {[%clk 0:00:45]} 29. Nd5 {[%clk 0:00:22]}  Nxd5 {[%clk 0:00:43]} 30. exd5 {[%clk 0:00:23]}  Qc4 {[%clk 0:00:37]} 31. f5 {[%clk 0:00:22]}  Ne5 {[%clk 0:00:36]} 32. fxg6 {[%clk 0:00:22]}  hxg6 {[%clk 0:00:37]} 33. Qf2 {[%clk 0:00:20]}  Bf6 {[%clk 0:00:34]} 34. Rc1 {[%clk 0:00:19]}  Qxc1 {[%clk 0:00:33]} 35. Bxc1 {[%clk 0:00:19]}  Rxc1 {[%clk 0:00:34]} 36. Qa7 {[%clk 0:00:18]}  Kg7 {[%clk 0:00:33]} 37. Qa4 {[%clk 0:00:15]}  Rb1 {[%clk 0:00:31]} 38. Qe4 {[%clk 0:00:14]}  Rb2 {[%clk 0:00:30]} 39. h4 {[%clk 0:00:15]}  Rd2 {[%clk 0:00:27]} 40. Kh3 {[%clk 0:00:15]}  Kg8 {[%clk 0:00:24]} 41. g4 {[%clk 0:00:14]}  Bg7 {[%clk 0:00:23]} 42. g5 {[%clk 0:00:14]}  Rd3+ {[%clk 0:00:21]} 43. Kh2 {[%clk 0:00:14]}  Rd4 {[%clk 0:00:20]} 44. Qe1 {[%clk 0:00:07]}  Ng4+ {[%clk 0:00:16]} 45. Kh3 {[%clk 0:00:08]}  Ne5 {[%clk 0:00:16]} 46. Kh2 {[%clk 0:00:08]}  Kf8 {[%clk 0:00:14]} 47. Kh3 {[%clk 0:00:06]}  Rc4 {[%clk 0:00:13]} 48. Be4 {[%clk 0:00:05]}  Kg8 {[%clk 0:00:13]} 49. Kg2 {[%clk 0:00:05]}  Ng4 {[%clk 0:00:13]} 50. Qe2 {[%clk 0:00:05]}  Ne5 {[%clk 0:00:12]} 51. Kg1 {[%clk 0:00:02]}  Rd4 {[%clk 0:00:11]} 52. Kg2 {[%clk 0:00:03]}  Bf8 {[%clk 0:00:11]} 53. h5 {[%clk 0:00:03]}  gxh5 {[%clk 0:00:10]} 54. Bf5 {[%clk 0:00:04]}  Ng4 {[%clk 0:00:09]} 55. Qc2 {[%clk 0:00:03]}  Bg7 {[%clk 0:00:09]} 56. Qc8+ {[%clk 0:00:03]}  Bf8 {[%clk 0:00:09]} 57. Bxg4 {[%clk 0:00:03]}  Rxg4+ {[%clk 0:00:09]} 58. Kf3 {[%clk 0:00:04]}  Rxg5 {[%clk 0:00:10]} 59. Qe8 {[%clk 0:00:04]}  Rxd5 {[%clk 0:00:10]} 60. Ke4 {[%clk 0:00:05]}  Re5+ {[%clk 0:00:10]} 61. Kf4 {[%clk 0:00:06]}  Re6 {[%clk 0:00:10]} 62. Kf3 {[%clk 0:00:06]}  Rf6+ {[%clk 0:00:10]} 63. Kg3 {[%clk 0:00:06]}  Rg6+ {[%clk 0:00:10]} 64. Kh3 {[%clk 0:00:06]}  d5 {[%clk 0:00:11]} 65. Qd8 {[%clk 0:00:06]}  e6 {[%clk 0:00:11]} 66. Kh4 {[%clk 0:00:07]}  Kg7 {[%clk 0:00:10]} 67. Kxh5 {[%clk 0:00:07]}  Ba3 {[%clk 0:00:10]} 68. Qc7 {[%clk 0:00:05]}  Bb2 {[%clk 0:00:10]} 69. Qc2 {[%clk 0:00:04]}  Bf6 {[%clk 0:00:10]} 0-1


[Site "https://www.chess.com"]

[Event "Titled Tuesday Blitz June 07 Late 2022"]
[White "Tahbaz, Arash"]
[Black "Adla, Diego"]
[WhiteFideId "12528846"]
[BlackFideId "100072"]
[WhiteElo "2389"]
[BlackElo "2377"]
[Result "1-0"]
[Round "05"]
[TimeControl "180+1"]
[Date "2022.06.07"]
[WhiteClock "0:02:38"]
[BlackClock "0:02:08"]

1. Nf3 {[%clk 0:03:00]}  d5 {[%clk 0:02:59]} 2. g3 {[%clk 0:03:01]}  Nd7 {[%clk 0:02:59]} 3. Bg2 {[%clk 0:03:01]}  e5 {[%clk 0:02:58]} 4. O-O {[%clk 0:03:02]}  Ngf6 {[%clk 0:02:58]} 5. d4 {[%clk 0:03:02]}  exd4 {[%clk 0:02:58]} 6. Nxd4 {[%clk 0:03:02]}  c6 {[%clk 0:02:58]} 7. b3 {[%clk 0:02:59]}  Bc5 {[%clk 0:02:57]} 8. Bb2 {[%clk 0:02:59]}  O-O {[%clk 0:02:57]} 9. Nd2 {[%clk 0:02:59]}  Re8 {[%clk 0:02:56]} 10. c4 {[%clk 0:03:00]}  dxc4 {[%clk 0:02:53]} 11. Nxc4 {[%clk 0:03:01]}  Nb6 {[%clk 0:02:53]} 12. Qc2 {[%clk 0:02:57]}  Bxd4 {[%clk 0:02:47]} 13. Rad1 {[%clk 0:02:57]}  c5 {[%clk 0:02:39]} 14. e3 {[%clk 0:02:58]}  Nxc4 {[%clk 0:02:39]} 15. bxc4 {[%clk 0:02:51]}  Bg4 {[%clk 0:02:33]} 16. Rd2 {[%clk 0:02:51]}  Qc8 {[%clk 0:02:20]} 17. exd4 {[%clk 0:02:50]}  Bh3 {[%clk 0:02:19]} 18. d5 {[%clk 0:02:44]}  Bxg2 {[%clk 0:02:18]} 19. Kxg2 {[%clk 0:02:45]}  Ne4 {[%clk 0:02:12]} 20. Re2 {[%clk 0:02:45]}  Qf5 {[%clk 0:02:08]} 21. Rfe1 {[%clk 0:02:38]} 1-0


[Site "https://www.chess.com"]

[Event "Titled Tuesday Blitz June 07 Late 2022"]
[White "Terry, Renato"]
[Black "Ibarra Jerez, Jose Carlos"]
[WhiteFideId "3803457"]
[BlackFideId "2226332"]
[WhiteElo "2577"]
[BlackElo "2628"]
[Result "1/2-1/2"]
[Round "05"]
[TimeControl "180+1"]
[Date "2022.06.07"]
[WhiteClock "0:00:05"]
[BlackClock "0:00:06"]

1. d4 {[%clk 0:02:26]}  d6 {[%clk 0:02:58]} 2. Nf3 {[%clk 0:02:24]}  g6 {[%clk 0:02:57]} 3. e4 {[%clk 0:02:23]}  Nf6 {[%clk 0:02:54]} 4. Bd3 {[%clk 0:02:14]}  Bg7 {[%clk 0:02:54]} 5. O-O {[%clk 0:02:12]}  O-O {[%clk 0:02:54]} 6. c3 {[%clk 0:02:11]}  Nbd7 {[%clk 0:02:46]} 7. e5 {[%clk 0:02:08]}  dxe5 {[%clk 0:02:42]} 8. dxe5 {[%clk 0:02:09]}  Ng4 {[%clk 0:02:39]} 9. e6 {[%clk 0:02:09]}  fxe6 {[%clk 0:02:25]} 10. Nbd2 {[%clk 0:02:01]}  Nde5 {[%clk 0:02:13]} 11. Be2 {[%clk 0:02:00]}  Nd3 {[%clk 0:02:07]} 12. Ne4 {[%clk 0:02:00]}  Nxc1 {[%clk 0:01:59]} 13. Qxc1 {[%clk 0:01:49]}  Nf6 {[%clk 0:01:56]} 14. Rd1 {[%clk 0:01:40]}  Qe8 {[%clk 0:01:56]} 15. Ng3 {[%clk 0:01:32]}  Nd5 {[%clk 0:01:53]} 16. Qc2 {[%clk 0:01:30]}  Nf4 {[%clk 0:01:45]} 17. Bf1 {[%clk 0:01:27]}  b6 {[%clk 0:01:44]} 18. Ng5 {[%clk 0:01:04]}  Bb7 {[%clk 0:01:39]} 19. Re1 {[%clk 0:01:02]}  e5 {[%clk 0:01:32]} 20. Rad1 {[%clk 0:00:56]}  h6 {[%clk 0:01:23]} 21. N5e4 {[%clk 0:00:48]}  Qc6 {[%clk 0:01:22]} 22. Qb3+ {[%clk 0:00:43]}  Kh7 {[%clk 0:01:20]} 23. Bb5 {[%clk 0:00:36]}  Qe6 {[%clk 0:01:18]} 24. Qxe6 {[%clk 0:00:34]}  Nxe6 {[%clk 0:01:17]} 25. Rd7 {[%clk 0:00:34]}  Rfe8 {[%clk 0:00:58]} 26. Bc4 {[%clk 0:00:32]}  Nf4 {[%clk 0:00:46]} 27. Rxc7 {[%clk 0:00:32]}  Bd5 {[%clk 0:00:40]} 28. Bb5 {[%clk 0:00:30]}  Rf8 {[%clk 0:00:33]} 29. Rxe7 {[%clk 0:00:29]}  Kh8 {[%clk 0:00:28]} 30. b3 {[%clk 0:00:23]}  a6 {[%clk 0:00:27]} 31. Bf1 {[%clk 0:00:23]}  Rad8 {[%clk 0:00:27]} 32. Bxa6 {[%clk 0:00:17]}  h5 {[%clk 0:00:27]} 33. h4 {[%clk 0:00:15]}  Ra8 {[%clk 0:00:26]} 34. Bb7 {[%clk 0:00:15]}  Ra7 {[%clk 0:00:23]} 35. Bxd5 {[%clk 0:00:15]}  Rxe7 {[%clk 0:00:23]} 36. Bc4 {[%clk 0:00:15]}  Rd8 {[%clk 0:00:21]} 37. Ng5 {[%clk 0:00:15]}  Rdd7 {[%clk 0:00:18]} 38. N3e4 {[%clk 0:00:14]}  Bh6 {[%clk 0:00:16]} 39. Nf3 {[%clk 0:00:15]}  Kg7 {[%clk 0:00:16]} 40. g3 {[%clk 0:00:14]}  Nd3 {[%clk 0:00:16]} 41. Re2 {[%clk 0:00:14]}  Re8 {[%clk 0:00:08]} 42. Kg2 {[%clk 0:00:13]}  Red8 {[%clk 0:00:07]} 43. Bxd3 {[%clk 0:00:11]}  Rxd3 {[%clk 0:00:06]} 44. Nxe5 {[%clk 0:00:12]}  Rd1 {[%clk 0:00:06]} 45. Nf3 {[%clk 0:00:11]}  Ra1 {[%clk 0:00:06]} 46. Nd4 {[%clk 0:00:12]}  Re8 {[%clk 0:00:05]} 47. a4 {[%clk 0:00:11]}  Rb1 {[%clk 0:00:05]} 48. Kf3 {[%clk 0:00:09]}  Kh8 {[%clk 0:00:04]} 49. Nd6 {[%clk 0:00:07]}  Rxe2 {[%clk 0:00:04]} 50. Kxe2 {[%clk 0:00:08]}  Bg7 {[%clk 0:00:04]} 51. N6b5 {[%clk 0:00:07]}  Bxd4 {[%clk 0:00:03]} 52. Nxd4 {[%clk 0:00:08]}  Rb2+ {[%clk 0:00:04]} 53. Ke3 {[%clk 0:00:08]}  Kg7 {[%clk 0:00:05]} 54. f3 {[%clk 0:00:05]}  Kf6 {[%clk 0:00:05]} 55. Kf4 {[%clk 0:00:06]}  Rb1 {[%clk 0:00:04]} 56. g4 {[%clk 0:00:05]}  Rc1 {[%clk 0:00:04]} 57. c4 {[%clk 0:00:04]}  Rd1 {[%clk 0:00:03]} 58. Ke4 {[%clk 0:00:03]}  Rh1 {[%clk 0:00:03]} 59. b4 {[%clk 0:00:02]}  Rxh4 {[%clk 0:00:03]} 60. Kf4 {[%clk 0:00:02]}  hxg4 {[%clk 0:00:04]} 61. fxg4 {[%clk 0:00:03]}  g5+ {[%clk 0:00:04]} 62. Kg3 {[%clk 0:00:03]}  Rh1 {[%clk 0:00:05]} 63. c5 {[%clk 0:00:03]}  bxc5 {[%clk 0:00:05]} 64. bxc5 {[%clk 0:00:03]}  Rc1 {[%clk 0:00:05]} 65. c6 {[%clk 0:00:02]}  Rc3+ {[%clk 0:00:05]} 66. Kf2 {[%clk 0:00:02]}  Rc4 {[%clk 0:00:06]} 67. Ke3 {[%clk 0:00:02]}  Ke5 {[%clk 0:00:05]} 68. Nf3+ {[%clk 0:00:03]}  Kf6 {[%clk 0:00:04]} 69. Nd4 {[%clk 0:00:04]}  Ke5 {[%clk 0:00:05]} 70. Nf3+ {[%clk 0:00:04]}  Kf6 {[%clk 0:00:06]} 71. Nd4 {[%clk 0:00:05]} 1/2-1/2


[Site "https://www.chess.com"]